[Event "LASS Vårturneringar 2018"]
[Site "Linköping, Sweden"]
[Date "2018.05.10"]
[Round "1.2"]
[White "Qwarfort, Fredrik"]
[Black "Orci, Istvan"]
[Result "1-0"]
[TimeControl "90 min + 30 sec/move + 30 min/40 moves"]
[WhiteElo "1894"]
[BlackElo "1500"]

1. d4 {[%clk 01:30:57]} {[%emt 00:00:03]} Nf6 {[%clk 01:30:48]} {[%emt
00:00:12]} 2. c4 {[%clk 01:31:23]} {[%emt 00:00:05]} c5 {[%clk 01:30:59]}
{[%emt 00:00:18]} 3. Nf3 {[%clk 01:30:47]} {[%emt 00:01:07]} cxd4 {[%clk
01:26:18]} {[%emt 00:05:10]} 4. Nxd4 {[%clk 01:28:07]} {[%emt 00:03:10]} Nc6
{[%clk 01:26:04]} {[%emt 00:00:44]} 5. Nc3 {[%clk 01:28:25]} {[%emt 00:00:13]}
e6 {[%clk 01:25:36]} {[%emt 00:00:57]} 6. a3 {[%clk 01:23:14]} {[%emt
00:05:42]} a6 {[%clk 01:22:17]} {[%emt 00:03:49]} 7. e4 {[%clk 01:23:18]}
{[%emt 00:00:27]} Qc7 {[%clk 01:20:01]} {[%emt 00:02:44]} 8. Be3 {[%clk
01:22:40]} {[%emt 00:01:09]} Bd6 {[%clk 01:13:15]} {[%emt 00:07:13]} 9. h3
{[%clk 01:17:29]} {[%emt 00:05:41]} Nxd4 {[%clk 01:12:23]} {[%emt 00:01:22]} 10.
Bxd4 {[%clk 01:16:35]} {[%emt 00:01:24]} Be5 {[%clk 01:11:14]} {[%emt
00:01:38]} 11. Be2 {[%clk 01:16:22]} {[%emt 00:00:44]} Bxd4 {[%clk 01:09:38]}
{[%emt 00:02:05]} 12. Qxd4 {[%clk 01:15:34]} {[%emt 00:01:19]} d6 {[%clk
01:08:22]} {[%emt 00:01:45]} 13. Rd1 {[%clk 01:09:36]} {[%emt 00:06:28]} Ke7
{[%clk 01:02:56]} {[%emt 00:05:56]} 14. O-O {[%clk 01:09:18]} {[%emt 00:00:48]}
Bd7 {[%clk 00:59:53]} {[%emt 00:03:32]} 15. Rd2 {[%clk 01:02:55]} {[%emt
00:06:54]} Rhd8 {[%clk 00:51:48]} {[%emt 00:08:34]} 16. Rfd1 {[%clk 01:00:33]}
{[%emt 00:02:53]} Be8 {[%clk 00:48:49]} {[%emt 00:03:28]} 17. g4 {[%clk
00:58:21]} {[%emt 00:02:43]} h6 {[%clk 00:33:29]} {[%emt 00:15:49]} 18. h4
{[%clk 00:56:51]} {[%emt 00:02:01]} Qc5 {[%clk 00:30:47]} {[%emt 00:03:11]} 19.
Qd3 {[%clk 00:56:19]} {[%emt 00:01:03]} g5 {[%clk 00:28:35]} {[%emt 00:02:42]}
20. b4 {[%clk 00:54:56]} {[%emt 00:01:54]} Qe5 {[%clk 00:27:38]} {[%emt
00:01:26]} 21. Qe3 {[%clk 00:50:37]} {[%emt 00:04:50]} gxh4 {[%clk 00:24:43]}
{[%emt 00:03:24]} 22. f4 {[%clk 00:49:45]} {[%emt 00:01:22]} Nxg4 {[%clk
00:23:38]} {[%emt 00:01:35]} 23. Bxg4 {[%clk 00:49:44]} {[%emt 00:00:31]} Qg7
{[%clk 00:23:09]} {[%emt 00:00:59]} 24. Rg2 {[%clk 00:50:03]} {[%emt 00:00:11]}
Qf6 {[%clk 00:21:10]} {[%emt 00:02:28]} 25. f5 {[%clk 00:44:22]} {[%emt
00:06:12]} Bc6 {[%clk 00:15:27]} {[%emt 00:06:12]} 26. Rf1 {[%clk 00:41:13]}
{[%emt 00:03:40]} e5 {[%clk 00:12:25]} {[%emt 00:03:32]} 27. b5 {[%clk
00:40:36]} {[%emt 00:01:07]} axb5 {[%clk 00:08:16]} {[%emt 00:04:40]} 28. cxb5
{[%clk 00:40:57]} {[%emt 00:00:09]} Rxa3 {[%clk 00:08:34]} {[%emt 00:00:12]} 29.
bxc6 {[%clk 00:40:50]} {[%emt 00:00:36]} Rxc3 {[%clk 00:08:23]} {[%emt
00:00:41]} 30. Qxc3 {[%clk 00:40:47]} {[%emt 00:00:33]} Rc8 {[%clk 00:08:44]}
{[%emt 00:00:08]} 31. Qb4 {[%clk 00:39:10]} {[%emt 00:02:07]} 1-0

[Event "LASS Vårturneringar 2018"]
[Site "Linköping, Sweden"]
[Date "2018.05.10"]
[Round "1.3"]
[White "Johansson, Henrik"]
[Black "Andersson, Görgen"]
[Result "0-1"]
[TimeControl "90 min + 30 sec/move + 30 min/40 moves"]
[WhiteElo "1675"]
[BlackElo "1908"]

1. d4 {[%clk 01:30:49]} {[%emt 00:00:10]} d5 {[%clk 01:30:53]} {[%emt
00:00:08]} 2. Nf3 {[%clk 01:31:06]} {[%emt 00:00:13]} Nc6 {[%clk 01:30:53]}
{[%emt 00:00:29]} 3. e3 {[%clk 01:31:02]} {[%emt 00:00:34]} Bg4 {[%clk
01:29:41]} {[%emt 00:01:42]} 4. c4 {[%clk 01:29:36]} {[%emt 00:01:57]} e5
{[%clk 01:28:06]} {[%emt 00:02:05]} 5. cxd5 {[%clk 01:23:54]} {[%emt 00:06:12]}
Qxd5 {[%clk 01:27:58]} {[%emt 00:00:37]} 6. Nc3 {[%clk 01:23:51]} {[%emt
00:00:33]} Bb4 {[%clk 01:25:20]} {[%emt 00:03:08]} 7. Be2 {[%clk 01:23:14]}
{[%emt 00:01:07]} exd4 {[%clk 01:23:16]} {[%emt 00:02:34]} 8. exd4 {[%clk
01:20:57]} {[%emt 00:02:47]} Nf6 {[%clk 01:18:27]} {[%emt 00:05:19]} 9. O-O
{[%clk 01:19:27]} {[%emt 00:01:57]} Bxc3 {[%clk 01:17:39]} {[%emt 00:01:19]} 10.
bxc3 {[%clk 01:17:30]} {[%emt 00:02:26]} O-O {[%clk 01:17:31]} {[%emt
00:00:38]} 11. c4 {[%clk 01:15:22]} {[%emt 00:02:39]} Qf5 {[%clk 01:14:26]}
{[%emt 00:03:33]} 12. d5 {[%clk 01:06:51]} {[%emt 00:09:02]} Ne5 {[%clk
01:13:06]} {[%emt 00:01:50]} 13. Nd4 {[%clk 01:05:53]} {[%emt 00:01:28]} Bxe2
{[%clk 01:08:48]} {[%emt 00:04:48]} 14. Nxf5 {[%clk 01:04:21]} {[%emt
00:02:02]} Bxd1 {[%clk 01:09:01]} {[%emt 00:00:17]} 15. Rxd1 {[%clk 01:04:47]}
{[%emt 00:00:03]} Nxc4 {[%clk 01:07:51]} {[%emt 00:01:41]} 16. Bf4 {[%clk
01:05:00]} {[%emt 00:00:17]} Ne8 {[%clk 01:02:19]} {[%emt 00:06:02]} 17. Rdc1
{[%clk 01:01:51]} {[%emt 00:03:39]} Ncd6 {[%clk 00:57:02]} {[%emt 00:05:47]} 18.
Nd4 {[%clk 00:50:39]} {[%emt 00:11:41]} Rc8 {[%clk 00:54:27]} {[%emt 00:03:05]}
19. Rab1 {[%clk 00:49:47]} {[%emt 00:01:22]} Nf6 {[%clk 00:53:37]} {[%emt
00:01:19]} 20. Kf1 {[%clk 00:49:09]} {[%emt 00:01:08]} Nxd5 {[%clk 00:52:06]}
{[%emt 00:02:02]} 21. Bxd6 {[%clk 00:47:54]} {[%emt 00:01:45]} cxd6 {[%clk
00:52:24]} {[%emt 00:00:12]} 22. Rxc8 {[%clk 00:48:06]} {[%emt 00:00:17]} Rxc8
{[%clk 00:52:37]} {[%emt 00:00:16]} 23. Rxb7 {[%clk 00:46:33]} {[%emt
00:02:04]} g6 {[%clk 00:45:33]} {[%emt 00:07:34]} 24. Rxa7 {[%clk 00:46:03]}
{[%emt 00:00:59]} Nf4 {[%clk 00:45:45]} {[%emt 00:00:19]} 25. Ne2 {[%clk
00:43:49]} {[%emt 00:03:13]} Nd3 {[%clk 00:42:29]} {[%emt 00:04:17]} 26. a4
{[%clk 00:43:05]} {[%emt 00:01:14]} Rb8 {[%clk 00:42:16]} {[%emt 00:00:44]} 27.
g3 {[%clk 00:42:59]} {[%emt 00:00:35]} Rb2 {[%clk 00:37:20]} {[%emt 00:05:25]}
28. a5 {[%clk 00:41:55]} {[%emt 00:01:34]} d5 {[%clk 00:36:17]} {[%emt
00:01:33]} 29. a6 {[%clk 00:40:29]} {[%emt 00:01:57]} Ra2 {[%clk 00:33:43]}
{[%emt 00:03:04]} 30. Nc3 {[%clk 00:35:41]} {[%emt 00:05:17]} Ra1+ {[%clk
00:32:36]} {[%emt 00:01:37]} 31. Ke2 {[%clk 00:35:30]} {[%emt 00:00:41]} Nb4
{[%clk 00:32:44]} {[%emt 00:00:21]} 32. Ra8+ {[%clk 00:35:22]} {[%emt
00:00:38]} Kg7 {[%clk 00:33:00]} {[%emt 00:00:14]} 33. a7 {[%clk 00:35:37]}
{[%emt 00:00:15]} d4 {[%clk 00:33:08]} {[%emt 00:00:23]} 34. Rb8 {[%clk
00:30:37]} {[%emt 00:05:30]} Rxa7 {[%clk 00:31:55]} {[%emt 00:01:42]} 35. Rxb4
{[%clk 00:30:56]} {[%emt 00:00:11]} dxc3 {[%clk 00:31:18]} {[%emt 00:01:08]} 36.
Rc4 {[%clk 00:29:57]} {[%emt 00:01:28]} Ra2+ {[%clk 00:31:23]} {[%emt
00:00:25]} 37. Ke3 {[%clk 00:29:36]} {[%emt 00:00:49]} c2 {[%clk 00:30:45]}
{[%emt 00:01:11]} 38. h4 {[%clk 00:29:41]} {[%emt 00:00:24]} f5 {[%clk
00:29:47]} {[%emt 00:01:29]} 39. f3 {[%clk 00:29:06]} {[%emt 00:01:05]} Ra3+
{[%clk 00:28:22]} {[%emt 00:01:56]} 40. Kf4 {[%clk 00:26:32]} {[%emt 00:03:01]}
Ra4 {[%clk 00:28:05]} {[%emt 00:00:48]} 0-1

[ePGN "0.1;DGT LiveChess/2.1"]

[Event "LASS Vårturneringar 2018"]
[Site "Linköping, Sweden"]
[Date "2018.05.10"]
[Round "2.7"]
[White "Tiger-Norqvist, Axel"]
[Black "Ivarsson, Simon"]
[Result "1-0"]
[TimeControl "90 min + 30 sec/move + 30 min/40 moves"]
[WhiteElo "2146"]
[BlackElo "1726"]

1. e4 {[%clk 01:30:57]} {[%emt 00:00:02]} c5 {[%clk 01:30:31]} {[%emt
00:00:30]} 2. Nc3 {[%clk 01:31:19]} {[%emt 00:00:08]} Nc6 {[%clk 01:30:50]}
{[%emt 00:00:10]} 3. f4 {[%clk 01:31:42]} {[%emt 00:00:07]} g6 {[%clk
01:30:57]} {[%emt 00:00:23]} 4. Nf3 {[%clk 01:32:04]} {[%emt 00:00:09]} Bg7
{[%clk 01:31:22]} {[%emt 00:00:05]} 5. Bb5 {[%clk 01:32:19]} {[%emt 00:00:15]}
d6 {[%clk 01:31:32]} {[%emt 00:00:20]} 6. Bxc6+ {[%clk 01:32:08]} {[%emt
00:00:42]} bxc6 {[%clk 01:31:54]} {[%emt 00:00:08]} 7. O-O {[%clk 01:32:25]}
{[%emt 00:00:13]} Nf6 {[%clk 01:32:08]} {[%emt 00:00:16]} 8. d3 {[%clk
01:32:44]} {[%emt 00:00:11]} O-O {[%clk 01:30:43]} {[%emt 00:01:55]} 9. Qe1
{[%clk 01:32:35]} {[%emt 00:00:39]} Bg4 {[%clk 01:27:29]} {[%emt 00:03:44]} 10.
Qh4 {[%clk 01:28:31]} {[%emt 00:04:34]} Bxf3 {[%clk 01:23:07]} {[%emt
00:04:52]} 11. Rxf3 {[%clk 01:28:13]} {[%emt 00:00:48]} Qd7 {[%clk 01:21:57]}
{[%emt 00:01:39]} 12. f5 {[%clk 01:27:39]} {[%emt 00:01:04]} Rab8 {[%clk
01:15:19]} {[%emt 00:07:08]} 13. g4 {[%clk 01:13:27]} {[%emt 00:14:42]} Rb7
{[%clk 01:13:26]} {[%emt 00:02:23]} 14. Ne2 {[%clk 01:08:46]} {[%emt 00:05:11]}
h5 {[%clk 01:10:43]} {[%emt 00:03:13]} 15. h3 {[%clk 01:03:29]} {[%emt
00:05:47]} a5 {[%clk 01:07:31]} {[%emt 00:03:42]} 16. Ng3 {[%clk 00:56:40]}
{[%emt 00:07:19]} Nxg4 {[%clk 01:03:07]} {[%emt 00:04:54]} 17. hxg4 {[%clk
00:56:58]} {[%emt 00:00:12]} Bf6 {[%clk 01:03:31]} {[%emt 00:00:06]} 18. g5
{[%clk 00:53:38]} {[%emt 00:03:51]} Bxb2 {[%clk 01:02:36]} {[%emt 00:01:25]} 19.
Bxb2 {[%clk 00:53:44]} {[%emt 00:00:24]} Rxb2 {[%clk 01:02:58]} {[%emt
00:00:09]} 20. Nxh5 {[%clk 00:52:33]} {[%emt 00:01:40]} Qb7 {[%clk 01:02:00]}
{[%emt 00:01:28]} 21. Nf6+ {[%clk 00:51:08]} {[%emt 00:01:55]} exf6 {[%clk
01:02:08]} {[%emt 00:00:22]} 22. Rh3 {[%clk 00:51:32]} {[%emt 00:00:05]} Rb1+
{[%clk 01:02:14]} {[%emt 00:00:24]} 23. Kg2 {[%clk 00:51:53]} {[%emt 00:00:09]}
1-0

[Event "LASS Vårturneringar 2018"]
[Site "Linköping, Sweden"]
[Date "2018.05.10"]
[Round "2.6"]
[White "Amberts, Jens"]
[Black "Knutsson, Håkan"]
[Result "1-0"]
[TimeControl "90 min + 30 sec/move + 30 min/40 moves"]
[WhiteElo "1942"]
[BlackElo "1865"]

1. e4 {[%clk 01:30:59]} c5 {[%clk 01:30:50]} {[%emt 00:00:11]} 2. d4 {[%clk
01:31:03]} {[%emt 00:00:26]} cxd4 {[%clk 01:31:07]} {[%emt 00:00:12]} 3. c3
{[%clk 01:31:32]} Nf6 {[%clk 01:31:17]} {[%emt 00:00:21]} 4. e5 {[%clk
01:32:01]} {[%emt 00:00:02]} Nd5 {[%clk 01:31:30]} {[%emt 00:00:16]} 5. Nf3
{[%clk 01:32:27]} {[%emt 00:00:03]} e6 {[%clk 01:31:40]} {[%emt 00:00:21]} 6.
cxd4 {[%clk 01:32:49]} {[%emt 00:00:08]} d6 {[%clk 01:31:54]} {[%emt 00:00:17]}
7. a3 {[%clk 01:32:44]} {[%emt 00:00:35]} Bd7 {[%clk 01:31:31]} {[%emt
00:00:52]} 8. Bd3 {[%clk 01:33:00]} {[%emt 00:00:13]} Bc6 {[%clk 01:31:40]}
{[%emt 00:00:22]} 9. O-O {[%clk 01:33:27]} {[%emt 00:00:04]} Nd7 {[%clk
01:31:05]} {[%emt 00:01:04]} 10. Nbd2 {[%clk 01:33:53]} {[%emt 00:00:04]} Be7
{[%clk 01:26:41]} {[%emt 00:04:55]} 11. Re1 {[%clk 01:34:10]} {[%emt 00:00:13]}
O-O {[%clk 01:26:11]} {[%emt 00:01:01]} 12. Nc4 {[%clk 01:32:59]} {[%emt
00:01:40]} dxe5 {[%clk 01:22:26]} {[%emt 00:04:15]} 13. Ncxe5 {[%clk 01:32:23]}
{[%emt 00:01:05]} Rc8 {[%clk 01:20:19]} {[%emt 00:02:38]} 14. Nxc6 {[%clk
01:30:47]} {[%emt 00:02:07]} Rxc6 {[%clk 01:19:19]} {[%emt 00:01:31]} 15. Bd2
{[%clk 01:28:31]} {[%emt 00:02:45]} N7f6 {[%clk 01:10:48]} {[%emt 00:09:01]} 16.
Ne5 {[%clk 01:27:47]} {[%emt 00:01:13]} Rc7 {[%clk 01:10:39]} {[%emt 00:00:41]}
17. Qf3 {[%clk 01:21:16]} {[%emt 00:07:00]} Nb6 {[%clk 01:04:57]} {[%emt
00:06:13]} 18. Bf4 {[%clk 01:07:50]} {[%emt 00:13:52]} Bd6 {[%clk 01:01:01]}
{[%emt 00:04:30]} 19. Rad1 {[%clk 01:06:57]} {[%emt 00:01:22]} Nfd5 {[%clk
00:58:49]} {[%emt 00:02:43]} 20. Bg3 {[%clk 00:59:42]} {[%emt 00:07:44]} Nc8
{[%clk 00:53:21]} {[%emt 00:05:59]} 21. Re4 {[%clk 00:54:12]} {[%emt 00:06:00]}
Nce7 {[%clk 00:49:20]} {[%emt 00:04:31]} 22. Nc4 {[%clk 00:48:38]} {[%emt
00:06:02]} Bxg3 {[%clk 00:47:58]} {[%emt 00:01:53]} 23. hxg3 {[%clk 00:47:59]}
{[%emt 00:01:09]} Nf6 {[%clk 00:44:46]} {[%emt 00:03:42]} 24. Rh4 {[%clk
00:43:18]} {[%emt 00:05:11]} Ng6 {[%clk 00:41:38]} {[%emt 00:03:38]} 25. Bxg6
{[%clk 00:42:42]} {[%emt 00:01:05]} fxg6 {[%clk 00:36:21]} {[%emt 00:05:48]} 26.
Ne3 {[%clk 00:39:52]} {[%emt 00:03:19]} Nd5 {[%clk 00:32:12]} {[%emt 00:04:40]}
27. Qe4 {[%clk 00:39:26]} {[%emt 00:00:53]} Qd6 {[%clk 00:31:45]} {[%emt
00:01:00]} 28. Nxd5 {[%clk 00:35:52]} {[%emt 00:04:04]} Qxd5 {[%clk 00:31:06]}
{[%emt 00:01:09]} 29. Qe2 {[%clk 00:34:36]} {[%emt 00:01:45]} Rfc8 {[%clk
00:29:52]} {[%emt 00:01:45]} 30. Re4 {[%clk 00:26:42]} {[%emt 00:08:22]} Rc2
{[%clk 00:28:03]} {[%emt 00:02:21]} 31. Qg4 {[%clk 00:26:32]} {[%emt 00:00:40]}
Rxb2 {[%clk 00:20:55]} {[%emt 00:07:39]} 32. Rxe6 {[%clk 00:21:54]} {[%emt
00:05:08]} Qf5 {[%clk 00:20:51]} {[%emt 00:00:34]} 33. Qxf5 {[%clk 00:19:56]}
{[%emt 00:02:28]} gxf5 {[%clk 00:21:18]} {[%emt 00:00:03]} 34. Re5 {[%clk
00:19:27]} {[%emt 00:00:58]} g6 {[%clk 00:21:06]} {[%emt 00:00:42]} 35. Re7
{[%clk 00:15:42]} {[%emt 00:04:15]} Rcc2 {[%clk 00:21:11]} {[%emt 00:00:24]} 36.
Rf1 {[%clk 00:16:10]} {[%emt 00:00:02]} Rd2 {[%clk 00:21:11]} {[%emt 00:00:31]}
37. Rc1 {[%clk 00:15:39]} {[%emt 00:01:01]} Rbc2 {[%clk 00:21:17]} {[%emt
00:00:24]} 38. Rxc2 {[%clk 00:15:38]} {[%emt 00:00:32]} Rxc2 {[%clk 03:59:50]}
{[%emt 00:00:07]} 39. Rxb7 {[%clk 00:15:55]} {[%emt 00:00:13]} Rc1+ {[%clk
00:19:57]} {[%emt 00:02:13]} 40. Kh2 {[%clk 00:15:57]} {[%emt 00:00:27]} a6
{[%clk 00:18:52]} {[%emt 00:01:35]} 41. Rb6 {[%clk 00:14:08]} {[%emt 00:02:19]}
Rd1 {[%clk 00:18:08]} {[%emt 00:01:14]} 42. Rxa6 {[%clk 00:10:04]} {[%emt
00:04:35]} Rxd4 {[%clk 00:18:24]} {[%emt 00:00:14]} 43. Ra7 {[%clk 00:09:18]}
{[%emt 00:01:15]} Kf8 {[%clk 00:17:54]} {[%emt 00:00:59]} 44. a4 {[%clk
00:06:55]} {[%emt 00:02:54]} Ke8 {[%clk 00:17:55]} {[%emt 00:00:28]} 45. a5
{[%clk 00:06:59]} {[%emt 00:00:26]} Ra4 {[%clk 00:17:50]} {[%emt 00:00:35]} 46.
a6 {[%clk 00:06:03]} {[%emt 00:01:27]} Kf8 {[%clk 00:15:56]} {[%emt 00:02:24]}
47. f3 {[%clk 00:04:47]} {[%emt 00:01:44]} Kg8 {[%clk 00:16:01]} {[%emt
00:00:26]} 48. Kg1 {[%clk 00:05:10]} {[%emt 00:00:07]} Ra2 {[%clk 00:16:12]}
{[%emt 00:00:19]} 49. Kh2 {[%clk 00:03:33]} {[%emt 00:02:08]} Ra4 {[%clk
00:16:21]} {[%emt 00:00:20]} 50. Kg1 {[%clk 00:22:46]} {[%emt 00:11:18]} Ra2
{[%clk 00:45:59]} {[%emt 00:00:51]} 51. Kf1 {[%clk 00:23:16]} g5 {[%clk
00:39:49]} {[%emt 00:06:41]} 52. Ke1 {[%clk 00:23:20]} {[%emt 00:00:26]} h5
{[%clk 00:40:00]} {[%emt 00:00:17]} 53. Kd1 {[%clk 00:20:03]} {[%emt 00:03:47]}
h4 {[%clk 00:37:44]} {[%emt 00:02:46]} 54. gxh4 {[%clk 00:20:08]} {[%emt
00:00:26]} gxh4 {[%clk 00:38:09]} {[%emt 00:00:05]} 55. Ra8+ {[%clk 00:18:17]}
{[%emt 00:02:21]} Kg7 {[%clk 00:37:34]} {[%emt 00:01:05]} 56. a7 {[%clk
00:18:45]} {[%emt 00:00:03]} Kh7 {[%clk 00:36:55]} {[%emt 00:01:07]} 57. Ke1
{[%clk 00:18:56]} {[%emt 00:00:20]} Kg7 {[%clk 00:36:36]} {[%emt 00:00:48]} 58.
Kf1 {[%clk 00:18:58]} {[%emt 00:00:27]} Kf7 {[%clk 00:37:01]} {[%emt 00:00:08]}
59. Rh8 {[%clk 00:18:12]} {[%emt 00:01:15]} 1-0

[Event "LASS Vårturneringar 2018"]
[Site "Linköping, Sweden"]
[Date "2018.05.10"]
[Round "2.5"]
[White "Wahlund, Max"]
[Black "Garner, Mårten"]
[Result "1-0"]
[TimeControl "90 min + 30 sec/move + 30 min/40 moves"]
[WhiteElo "2097"]
[BlackElo "1872"]

1. e4 {[%clk 01:29:37]} {[%emt 00:01:22]} e6 {[%clk 01:30:55]} {[%emt
00:00:05]} 2. Nf3 {[%clk 01:29:27]} {[%emt 00:00:41]} d5 {[%clk 01:31:17]}
{[%emt 00:00:08]} 3. Nc3 {[%clk 01:29:47]} {[%emt 00:00:10]} Nf6 {[%clk
01:31:04]} {[%emt 00:00:43]} 4. Bd3 {[%clk 01:26:42]} {[%emt 00:03:34]} c5
{[%clk 01:29:46]} {[%emt 00:01:47]} 5. b3 {[%clk 01:26:37]} {[%emt 00:00:37]}
Nc6 {[%clk 01:26:27]} {[%emt 00:03:49]} 6. O-O {[%clk 01:26:40]} {[%emt
00:00:27]} a6 {[%clk 01:22:54]} {[%emt 00:04:02]} 7. exd5 {[%clk 01:26:46]}
{[%emt 00:00:24]} exd5 {[%clk 01:22:59]} {[%emt 00:00:25]} 8. Re1+ {[%clk
01:26:43]} {[%emt 00:00:34]} Be7 {[%clk 01:23:00]} {[%emt 00:00:29]} 9. Bb2
{[%clk 01:26:14]} {[%emt 00:00:59]} O-O {[%clk 01:23:03]} {[%emt 00:00:26]} 10.
h3 {[%clk 01:25:50]} {[%emt 00:00:54]} b5 {[%clk 01:20:02]} {[%emt 00:03:31]}
11. a4 {[%clk 01:24:53]} {[%emt 00:01:28]} b4 {[%clk 01:17:54]} {[%emt
00:02:36]} 12. Ne2 {[%clk 01:24:37]} {[%emt 00:00:47]} Qc7 {[%clk 01:16:24]}
{[%emt 00:01:59]} 13. Ng3 {[%clk 01:23:56]} {[%emt 00:01:13]} d4 {[%clk
01:11:00]} {[%emt 00:05:54]} 14. c3 {[%clk 01:22:19]} {[%emt 00:02:06]} Rd8
{[%clk 01:08:26]} {[%emt 00:03:03]} 15. cxd4 {[%clk 01:21:54]} {[%emt
00:00:55]} cxd4 {[%clk 01:04:12]} {[%emt 00:04:46]} 16. Rc1 {[%clk 01:21:45]}
{[%emt 00:00:39]} Be6 {[%clk 00:57:19]} {[%emt 00:07:22]} 17. Nxd4 {[%clk
01:20:29]} {[%emt 00:01:47]} Rxd4 {[%clk 00:56:00]} {[%emt 00:01:49]} 18. Bxd4
{[%clk 01:20:48]} {[%emt 00:00:11]} Qd7 {[%clk 00:55:20]} {[%emt 00:01:09]} 19.
Bxf6 {[%clk 01:19:39]} {[%emt 00:01:39]} Bxf6 {[%clk 00:55:43]} {[%emt
00:00:07]} 20. Be4 {[%clk 01:15:58]} {[%emt 00:04:12]} Rc8 {[%clk 00:54:50]}
{[%emt 00:01:23]} 21. Qh5 {[%clk 01:09:03]} {[%emt 00:07:24]} h6 {[%clk
00:50:20]} {[%emt 00:05:00]} 22. Bf5 {[%clk 01:04:46]} {[%emt 00:04:47]} Ne5
{[%clk 00:47:27]} {[%emt 00:03:23]} 23. Bxe6 {[%clk 01:04:23]} {[%emt
00:00:53]} Qxe6 {[%clk 00:47:05]} {[%emt 00:00:51]} 24. Rxc8+ {[%clk 01:04:47]}
{[%emt 00:00:07]} Qxc8 {[%clk 00:47:27]} {[%emt 00:00:08]} 25. Rxe5 {[%clk
01:04:59]} {[%emt 00:00:19]} Qc1+ {[%clk 00:46:53]} {[%emt 00:01:03]} 26. Nf1
{[%clk 01:05:16]} {[%emt 00:00:13]} Bxe5 {[%clk 00:47:13]} {[%emt 00:00:11]} 27.
Qxe5 {[%clk 01:05:40]} {[%emt 00:00:06]} Qa3 {[%clk 00:46:44]} {[%emt
00:00:59]} 28. Qe8+ {[%clk 01:06:02]} {[%emt 00:00:09]} Kh7 {[%clk 00:47:05]}
{[%emt 00:00:09]} 29. Qxf7 {[%clk 01:06:28]} {[%emt 00:00:05]} 1-0

[Event "LASS Vårturneringar 2018"]
[Site "Linköping, Sweden"]
[Date "2018.05.10"]
[Round "2.1"]
[White "Nörager, Mattias"]
[Black "Qwarfort, Fredrik"]
[Result "0-1"]
[TimeControl "90 min + 30 sec/move + 30 min/40 moves"]
[WhiteElo "1706"]
[BlackElo "1894"]

1. e4 {[%clk 01:30:48]} {[%emt 00:00:11]} d6 {[%clk 01:30:38]} {[%emt
00:00:23]} 2. d4 {[%clk 01:29:52]} {[%emt 00:01:26]} Nf6 {[%clk 01:31:03]}
{[%emt 00:00:06]} 3. Bd3 {[%clk 01:29:11]} {[%emt 00:01:10]} g6 {[%clk
01:30:41]} {[%emt 00:00:52]} 4. Nf3 {[%clk 01:28:00]} {[%emt 00:01:41]} Bg7
{[%clk 01:30:57]} {[%emt 00:00:14]} 5. c4 {[%clk 01:27:10]} {[%emt 00:01:20]}
O-O {[%clk 01:30:22]} {[%emt 00:01:06]} 6. Nc3 {[%clk 01:26:55]} {[%emt
00:00:44]} c5 {[%clk 01:30:14]} {[%emt 00:00:38]} 7. dxc5 {[%clk 01:24:26]}
{[%emt 00:02:59]} dxc5 {[%clk 01:30:17]} {[%emt 00:00:27]} 8. Be3 {[%clk
01:23:18]} {[%emt 00:01:38]} Qa5 {[%clk 01:23:38]} {[%emt 00:07:09]} 9. Qa4
{[%clk 01:17:12]} {[%emt 00:06:35]} Qb6 {[%clk 01:13:43]} {[%emt 00:10:26]} 10.
Rb1 {[%clk 01:11:37]} {[%emt 00:06:05]} Rd8 {[%clk 01:07:43]} {[%emt 00:06:30]}
11. Bc2 {[%clk 01:04:11]} {[%emt 00:07:55]} Bd7 {[%clk 00:57:47]} {[%emt
00:10:26]} 12. Qa3 {[%clk 01:00:29]} {[%emt 00:04:13]} Na6 {[%clk 00:57:27]}
{[%emt 00:00:50]} 13. O-O {[%clk 00:51:50]} {[%emt 00:09:08]} Nb4 {[%clk
00:54:04]} {[%emt 00:03:54]} 14. Ba4 {[%clk 00:48:10]} {[%emt 00:04:10]} e6
{[%clk 00:42:28]} {[%emt 00:12:06]} 15. Bxd7 {[%clk 00:42:39]} {[%emt
00:06:01]} Nxd7 {[%clk 00:36:49]} {[%emt 00:06:09]} 16. Na4 {[%clk 00:36:05]}
{[%emt 00:07:04]} Qc6 {[%clk 00:36:35]} {[%emt 00:00:44]} 17. Bxc5 {[%clk
00:32:17]} {[%emt 00:04:18]} Nxc5 {[%clk 00:36:25]} {[%emt 00:00:40]} 0-1